bitfinex-derivatives/quotes_BTCF0:USTF0_20241217
["timestamp","ask_amount","ask_price","bid_price","bid_amount"]
[1734454730886,0.0001092,106860.0,106850.0,0.14720403]
[1734454730887,0.0468962,106860.0,106850.0,0.14720403]
[1734454732579,0.4076962,106860.0,106850.0,0.06326933]
[1734454732876,0.4076962,106860.0,106850.0,0.14720403]
[1734454733079,0.0468962,106860.0,106850.0,0.14720403]
[1734454733284,0.4076962,106860.0,106850.0,0.14720403]
[1734454735496,0.0468962,106860.0,106850.0,0.14720403]
[1734454736187,0.4076962,106860.0,106850.0,0.14720403]
[1734454738083,0.4076962,106860.0,106850.0,0.98280696]
[1734454738385,0.4076962,106860.0,106850.0,0.59248363]
[1734454738581,0.0001092,106860.0,106850.0,0.59248363]
[1734454738885,0.0001092,106860.0,106850.0,0.95328363]
[1734454739082,0.0001092,106860.0,106850.0,1.00894358]
[1734454739283,0.0001092,106860.0,106850.0,1.56554308]
[1734454739482,0.149882,106880.0,106850.0,1.56554308]
[1734454739483,0.149882,106880.0,106870.0,0.046783]
[1734454739683,0.149882,106880.0,106870.0,0.57722483]
[1734454740883,0.12172077,106880.0,106870.0,1.43896438]
[1734454741282,0.12172077,106880.0,106870.0,0.93802483]
[1734454741283,0.16849977,106880.0,106870.0,0.93802483]
[1734454741481,0.16849977,106880.0,106870.0,1.43896438]
[1734454741681,0.16849977,106880.0,106870.0,0.93802483]
[1734454742477,0.11839977,106880.0,106870.0,0.93802483]
[1734454744088,0.11839977,106880.0,106870.0,0.57722483]
[1734454744589,0.11839977,106880.0,106870.0,0.49329013]
[1734454744799,0.47919977,106880.0,106870.0,0.046783]
[1734454745092,0.47919977,106880.0,106870.0,0.49329013]
[1734454745692,0.47919977,106880.0,106870.0,0.50706371]
[1734454746084,0.47919977,106880.0,106870.0,0.06055658]
[1734454747892,0.47919977,106880.0,106870.0,0.14449128]
[1734454748480,0.47919977,106880.0,106870.0,0.06055658]
[1734454749496,0.43242077,106880.0,106870.0,0.14449128]
[1734454749698,0.07162077,106880.0,106870.0,0.8967396]
[1734454751384,0.07162077,106880.0,106870.0,0.5359396]
[1734454752389,0.053,106880.0,106870.0,0.8967396]
[1734454752599,0.407567,106910.0,106900.0,0.04677]
[1734454752808,0.4124,106910.0,106900.0,0.1307047]
[1734454753187,0.0516,106910.0,106900.0,0.57798552]
[1734454753494,0.0516,106910.0,106900.0,1.43953632]
[1734454753699,0.3608,106930.0,106920.0,0.046761]
[1734454753994,0.3608,106930.0,106920.0,0.1306957]
[1734454753995,0.4124,106930.0,106920.0,0.1306957]
[1734454754599,0.459157,106930.0,106920.0,0.1306957]
[1734454754985,0.0516,106930.0,106920.0,0.1306957]
[1734454756201,0.07070789,106930.0,106920.0,0.1306957]
[1734454756787,0.0516,106930.0,106920.0,0.1306957]
[1734454756998,0.0516,106930.0,106920.0,0.13077316]
[1734454757792,0.0516,106930.0,106920.0,0.0839347]
[1734454758000,0.0516,106930.0,106920.0,0.1306957]
[1734454758590,0.0516,106930.0,106920.0,0.4914957]
[1734454758802,0.0516,106930.0,106920.0,0.49160756]
[1734454759301,0.0516,106930.0,106920.0,0.13080756]
[1734454760099,0.0516,106930.0,106920.0,0.04687286]
[1734454760299,0.098357,106930.0,106920.0,0.04687286]
[1734454762391,0.0516,106930.0,106920.0,0.13080756]
[1734454762601,0.098357,106930.0,106920.0,0.13080756]
[1734454762792,0.0516,106930.0,106920.0,0.13080756]
[1734454765403,0.098357,106930.0,106920.0,0.04687286]
[1734454765909,0.0516,106930.0,106920.0,0.13080756]
[1734454767697,0.0516,106930.0,106920.0,0.14468621]
[1734454767906,0.098357,106930.0,106920.0,0.14468621]
[1734454768307,0.0516,106930.0,106920.0,0.50548621]
[1734454768514,0.0516,106930.0,106920.0,0.14468621]
[1734454769111,0.098357,106930.0,106920.0,0.14468621]
[1734454769818,0.0516,106930.0,106920.0,0.14468621]
[1734454770005,0.0516,106930.0,106920.0,0.50548621]
[1734454778922,0.0516,106930.0,106920.0,0.58942091]
[1734454779109,0.0516,106930.0,106920.0,0.50548621]
[1734454779710,0.0516,106930.0,106920.0,0.58942091]
[1734454779910,0.0516,106930.0,106920.0,0.50548621]
[1734454780107,0.10068834,106940.0,106920.0,0.58942091]
[1734454780309,0.10068834,106940.0,106930.0,0.4914917]
[1734454780520,8.834e-05,106940.0,106930.0,0.4914917]
[1734454781111,0.0522,106950.0,106940.0,0.046752]
[1734454781418,0.4668,106960.0,106950.0,0.046748]
[1734454781612,0.519,106960.0,106950.0,0.1306827]
[1734454783221,0.565744,106960.0,106950.0,0.1306827]
[1734454783924,0.519,106960.0,106950.0,0.1306827]
[1734454784114,0.53802545,106960.0,106950.0,0.1306827]
[1734454784623,0.53802545,106960.0,106950.0,0.14450568]
[1734454787016,0.58476945,106960.0,106950.0,0.14450568]
[1734454789227,0.22396945,106960.0,106950.0,0.14450568]
[1734454789616,0.17722545,106960.0,106950.0,0.14450568]
[1734454789919,0.1582,106960.0,106950.0,0.50530568]
[1734454790127,0.18395934,107000.0,106980.0,0.046735]
[1734454790318,0.1,107000.0,106990.0,0.1306647]
[1734454791122,0.1,107000.0,106990.0,0.13076008]
[1734454791321,0.1,107000.0,106990.0,0.49156008]
[1734454792319,0.1,107000.0,106990.0,0.54376008]
[1734454795030,0.1,107000.0,106990.0,0.55721261]
[1734454795731,0.1,107000.0,106990.0,0.60741261]
[1734454799834,0.1,107000.0,106990.0,0.60741261]
[1734454801628,0.146726,107000.0,106990.0,0.14421261]
[1734454801830,0.507526,107000.0,106990.0,0.06027791]
[1734454802139,0.507526,107000.0,106990.0,0.14421261]
[1734454802140,0.557226,107000.0,106990.0,0.14421261]
[1734454802930,0.918026,107000.0,106970.0,0.1306727]
[1734454803237,0.918026,107000.0,106950.0,0.4914797]
[1734454803238,0.046746,106960.0,106950.0,0.046747]
[1734454803430,0.407546,106960.0,106950.0,0.046747]
[1734454804239,0.407546,106960.0,106950.0,0.04683897]
[1734454804444,0.407546,106960.0,106950.0,9.197e-05]
[1734454804633,0.768346,106960.0,106950.0,9.197e-05]
[1734454805031,0.768346,106960.0,106950.0,0.04683997]
[1734454805436,0.05,106970.0,106960.0,0.046744]
[1734454805638,0.407536,106980.0,106970.0,0.046739]
[1734454806139,0.046742,106970.0,106960.0,0.046742]
[1734454806339,0.456442,106970.0,106960.0,0.046742]
[1734454806741,0.456442,106970.0,106950.0,0.05878882]
[1734454806742,0.046744,106960.0,106950.0,0.05878882]
[1734454806941,0.407544,106960.0,106950.0,0.05878882]
[1734454807243,0.456441,106970.0,106960.0,0.046744]
[1734454808938,0.4097,106970.0,106960.0,0.046744]
[1734454811134,0.456439,106970.0,106960.0,0.046744]
[1734454813646,0.5403737,106970.0,106960.0,0.046744]
[1734454814239,0.456439,106970.0,106960.0,0.046744]
[1734454819349,0.456439,106970.0,106940.0,0.50682122]
[1734454819548,0.407544,106960.0,106950.0,0.046747]
[1734454820250,0.407544,106960.0,106950.0,0.04685596]
[1734454821139,0.3608,106960.0,106950.0,0.04685596]
[1734454823540,0.407544,106960.0,106950.0,0.04685596]
[1734454823945,0.3608,106960.0,106950.0,0.04685596]
[1734454826962,0.407544,106960.0,106950.0,0.04685596]
[1734454827159,0.3608,106960.0,106950.0,0.04685596]
[1734454827456,0.407544,106960.0,106950.0,0.04685596]
[1734454828152,0.4914787,106960.0,106950.0,0.00010896]
[1734454828359,0.5918787,106960.0,106950.0,0.00010896]
[1734454828553,0.046748,106950.0,106940.0,0.01207726]
[1734454828754,0.5754174,106950.0,106940.0,1.05945942]
[1734454829061,0.4914827,106950.0,106940.0,1.05945942]
[1734454829460,0.4914827,106950.0,106940.0,0.55667872]
[1734454829648,0.4914827,106950.0,106940.0,1.05985321]
[1734454829962,0.4914827,106950.0,106940.0,1.5071525]
[1734454830553,0.4914827,106950.0,106940.0,7.922e-05]
[1734454831851,0.4914827,106950.0,106940.0,0.50325371]
[1734454832754,0.4914827,106950.0,106940.0,7.922e-05]
[1734454833152,0.4914827,106950.0,106940.0,0.04683122]
[1734454833660,0.5754174,106950.0,106940.0,7.922e-05]
[1734454833961,0.046752,106940.0,106930.0,0.50627345]
[1734454834270,0.457252,106940.0,106930.0,0.50627345]
[1734454834752,0.457252,106940.0,106930.0,0.50631438]
[1734454835153,0.5411867,106940.0,106930.0,0.45956038]
[1734454835359,0.44656136,106940.0,106930.0,0.57749055]
[1734454835548,0.49331336,106940.0,106930.0,1.0806199]
[1734454835755,0.49331336,106940.0,106930.0,0.02089105]
[1734454835949,0.49331336,106940.0,106930.0,0.01213156]
[1734454836559,0.49331336,106940.0,106930.0,4.093e-05]
[1734454836948,0.49331336,106940.0,106930.0,0.04679793]
[1734454837763,0.50542813,106940.0,106930.0,0.04679793]
[1734454839365,0.50542813,106940.0,106930.0,4.093e-05]
[1734454840157,0.49331336,106940.0,106930.0,0.04679793]
[1734454841364,0.40937866,106940.0,106930.0,0.04679793]
[1734454842561,0.49331336,106940.0,106930.0,0.04679793]
[1734454843065,0.49331336,106940.0,106930.0,4.093e-05]
[1734454844363,0.49338719,106940.0,106930.0,4.093e-05]
[1734454848273,0.49338719,106940.0,106930.0,0.04679793]
[1734454848758,0.49338719,106940.0,106930.0,4.093e-05]
[1734454851067,0.04676,106930.0,106920.0,0.04676]
[1734454851365,0.40756,106930.0,106920.0,0.04676]
[1734454853674,0.54176053,106940.0,106930.0,0.046757]
[1734454853675,0.05027383,106940.0,106930.0,0.046757]
[1734454853975,0.05027383,106940.0,106930.0,0.2754917]
[1734454853976,0.407552,106940.0,106930.0,0.2754917]
[1734454854171,0.407552,106940.0,106930.0,0.143957]
[1734454854361,0.4914867,106940.0,106930.0,0.096757]
[1734454854568,0.4914867,106950.0,106940.0,0.5085133]
[1734454854768,0.49155473,106950.0,106940.0,0.50858713]
[1734454855373,0.40762003,106950.0,106940.0,0.50858713]
[1734454855569,0.40762003,106950.0,106940.0,0.55533913]
[1734454857981,0.40762003,106950.0,106940.0,0.63927383]
[1734454857982,6.803e-05,106950.0,106940.0,0.63927383]
[1734454858182,6.803e-05,106950.0,106940.0,0.73697383]
[1734454858385,6.803e-05,106950.0,106940.0,0.78387383]
[1734454858585,0.14901908,106960.0,106950.0,0.046748]
[1734454858782,0.14901908,106960.0,106950.0,0.4914827]
[1734454858783,0.10227408,106960.0,106950.0,0.4914827]
[1734454859282,0.10227408,106960.0,106950.0,0.1306827]
[1734454859474,0.06505874,106960.0,106950.0,0.1306827]
[1734454859870,0.01831474,106960.0,106950.0,0.1306827]
[1734454860070,0.04825119,106970.0,106950.0,0.4914827]
[1734454860283,0.04825119,106970.0,106960.0,0.1306787]
[1734454860482,0.04825119,106970.0,106960.0,0.046744]
[1734454860887,0.06731363,106970.0,106960.0,0.046744]
[1734454861977,0.06731363,106970.0,106950.0,0.046745]
[1734454861978,0.046745,106960.0,106950.0,0.046745]
[1734454862987,0.046748,106950.0,106940.0,0.71181518]
[1734454864784,0.407546,106960.0,106950.0,0.046748]
[1734454865888,0.046748,106950.0,106940.0,0.71181318]
[1734454866277,0.407548,106950.0,106940.0,0.71181318]
[1734454867786,0.046748,106950.0,106940.0,0.71181318]
[1734454868181,0.407548,106950.0,106940.0,0.71181318]
[1734454868685,0.046748,106950.0,106940.0,0.71181318]
[1734454868872,0.407544,106960.0,106950.0,0.046748]
[1734454869078,0.046744,106960.0,106950.0,0.1306827]
[1734454869288,0.407544,106960.0,106950.0,0.046748]
[1734454871978,0.3608,106960.0,106950.0,0.1306827]
[1734454872180,0.42811163,106970.0,106960.0,0.046744]
[1734454872379,0.06731163,106970.0,106960.0,0.1798787]
[1734454872980,0.06731163,106970.0,106960.0,0.095944]
[1734454873477,0.06731163,106970.0,106960.0,0.0492]
[1734454873677,0.42811163,106970.0,106960.0,0.0492]
[1734454874583,0.42811163,106970.0,106950.0,0.046746]
[1734454874780,0.046744,106960.0,106950.0,0.1306807]
[1734454874976,0.046744,106960.0,106950.0,0.5426807]
[1734454875787,0.046744,106960.0,106950.0,0.1818807]
[1734454875991,0.046744,106960.0,106950.0,0.5426807]
[1734454876183,0.046744,106960.0,106950.0,0.1818807]
[1734454876378,0.02057163,106970.0,106950.0,0.1818807]
[1734454876582,0.06731263,106970.0,106960.0,0.046744]
[1734454876985,0.42811263,106970.0,106960.0,0.046744]
[1734454877383,0.06731263,106970.0,106960.0,0.046744]
[1734454878588,0.06731263,106970.0,106950.0,0.4959347]
[1734454878789,0.046744,106960.0,106950.0,0.097947]
[1734454879092,0.407544,106960.0,106950.0,0.097947]
[1734454879478,0.046744,106960.0,106950.0,0.097947]
[1734454879688,0.407544,106960.0,106950.0,0.097947]
[1734454880091,0.407544,106960.0,106940.0,1.02571418]
[1734454880092,0.046748,106950.0,106940.0,1.02571418]
[1734454881090,0.458846,106960.0,106940.0,0.99873754]
[1734454881387,0.458846,106960.0,106950.0,0.046748]
[1734454881779,0.046748,106950.0,106940.0,0.99873754]
[1734454881991,0.458846,106960.0,106940.0,0.45630284]
[1734454882193,0.046748,106950.0,106940.0,0.45630284]
[1734454882400,0.4914827,106950.0,106940.0,0.40955184]
[1734454882585,0.5920827,106950.0,106940.0,0.40955184]
[1734454883087,0.508148,106950.0,106940.0,0.40955184]
[1734454883487,0.508148,106950.0,106940.0,0.45630384]
[1734454883687,0.508148,106950.0,106940.0,0.40955184]
[1734454885184,0.5920827,106950.0,106940.0,0.40955184]
[1734454886497,0.5920827,106950.0,106940.0,0.39767579]
[1734454886690,0.6760174,106950.0,106940.0,0.39767579]
[1734454887098,0.9760174,106950.0,106940.0,0.39735914]
[1734454887496,1.0598202,106950.0,106940.0,0.39735914]
[1734454890700,0.9758855,106950.0,106940.0,0.39735914]
[1734454890891,0.6758855,106950.0,106940.0,0.39735914]
[1734454891792,0.046765,106910.0,106900.0,0.64894231]
[1734454892095,0.4914997,106910.0,106900.0,0.55399434]
[1734454892401,0.49124763,106910.0,106900.0,0.55399434]
[1734454892703,0.49124763,106910.0,106900.0,0.0515]
[1734454892902,0.49124763,106910.0,106900.0,0.05156803]
[1734454893287,0.046779,106880.0,106870.0,1.00548427]
[1734454893487,0.1307137,106880.0,106860.0,1.50885014]
[1734454893697,0.046779,106880.0,106870.0,0.4939348]
[1734454893906,0.046779,106880.0,106870.0,0.046783]
[1734454894289,0.046783,106870.0,106860.0,0.94964614]
[1734454894509,0.49160244,106870.0,106860.0,0.4471518]
[1734454894702,0.49160244,106870.0,106850.0,0.60744091]
[1734454894703,0.046787,106860.0,106850.0,0.60744091]
[1734454894887,0.046787,106860.0,106850.0,1.10993525]
[1734454895198,0.046787,106860.0,106850.0,0.50249434]
[1734454895199,0.5754564,106860.0,106850.0,0.50249434]
[1734454895395,0.6238564,106860.0,106840.0,0.55833247]
[1734454895593,0.4915267,106850.0,106830.0,0.00140374]
[1734454895789,0.4447347,106840.0,106830.0,0.55973621]
[1734454896009,0.046805,106820.0,106810.0,1.56381186]
[1734454896296,0.046805,106820.0,106810.0,0.95012614]
[1734454896297,0.4915397,106820.0,106810.0,0.95012614]
[1734454896502,0.4915397,106820.0,106810.0,0.50297434]
[1734454896804,0.4915397,106820.0,106800.0,0.01535517]
[1734454897003,0.4915437,106810.0,106790.0,0.38953919]
[1734454897301,0.4915437,106810.0,106780.0,0.49196379]
[1734454897302,0.046818,106790.0,106780.0,0.44514379]
[1734454897491,0.046818,106790.0,106770.0,1.57566225]
[1734454897492,0.4915527,106790.0,106770.0,1.18612306]
[1734454897901,0.49163706,106790.0,106770.0,1.07479398]
[1734454898096,0.1307567,106780.0,106770.0,0.39094403]
[1734454898293,0.4915567,106780.0,106770.0,0.40584766]
[1734454898592,0.4915567,106780.0,106770.0,0.39094403]
[1734454898593,0.5754914,106780.0,106770.0,0.39094403]
[1734454898899,0.5754914,106780.0,106770.0,0.00140484]
[1734454899106,0.4915567,106780.0,106770.0,0.00140484]
[1734454899405,0.046827,106770.0,106760.0,0.46018121]
[1734454899602,0.5754964,106770.0,106760.0,0.44514379]
[1734454899805,0.707622,106780.0,106760.0,0.44514379]
[1734454899806,0.407624,106780.0,106760.0,0.44514379]
[1734454900005,0.407624,106780.0,106760.0,0.046829]
[1734454900512,0.53384385,106780.0,106760.0,0.046829]
[1734454901704,0.40770336,106790.0,106770.0,0.3608]
[1734454901900,0.40770336,106790.0,106780.0,0.046822]
[1734454902108,8.436e-05,106790.0,106780.0,0.046822]
[1734454902307,8.436e-05,106790.0,106780.0,0.407622]
[1734454902700,8.436e-05,106790.0,106780.0,0.046822]
[1734454902902,8.436e-05,106790.0,106780.0,0.407622]
[1734454903300,8.436e-05,106790.0,106780.0,0.046822]
[1734454903514,0.40770436,106790.0,106770.0,0.146426]
[1734454903805,0.40770436,106790.0,106770.0,0.507226]
[1734454904205,0.40770436,106790.0,106780.0,0.046822]
[1734454904413,0.04690436,106790.0,106780.0,0.046822]
[1734454904903,0.40770436,106790.0,106780.0,0.046822]
[1734454905700,8.436e-05,106790.0,106780.0,0.046822]
[1734454906209,8.436e-05,106790.0,106780.0,0.407622]
[1734454906706,0.04690236,106790.0,106770.0,0.5225185]
[1734454906909,0.04690236,106790.0,106770.0,0.1617185]
[1734454907115,0.40770236,106790.0,106770.0,0.1617185]
[1734454907412,0.06545958,106790.0,106770.0,0.1617185]
[1734454907705,0.06545958,106790.0,106780.0,0.046822]
[1734454907899,0.42625958,106790.0,106780.0,0.046822]
[1734454908816,0.06545958,106790.0,106780.0,0.046822]
[1734454909405,0.37944158,106790.0,106780.0,0.046822]
[1734454909600,0.01864158,106790.0,106780.0,0.407622]
[1734454910812,0.01864158,106790.0,106780.0,0.53384185]
[1734454911014,0.01864158,106790.0,106780.0,0.407622]
[1734454911600,8.436e-05,106790.0,106780.0,0.53384185]
[1734454915414,8.436e-05,106790.0,106780.0,0.36636695]
[1734454915718,8.436e-05,106790.0,106780.0,0.41318895]
[1734454916605,0.046811,106810.0,106800.0,0.046814]
[1734454916810,0.046811,106810.0,106800.0,0.17303385]
[1734454917023,0.0651955,106810.0,106800.0,0.046814]
[1734454917611,0.0651955,106810.0,106800.0,0.04688705]
[1734454918219,6.726e-05,106820.0,106800.0,0.1731069]
[1734454918412,6.726e-05,106820.0,106810.0,0.17302885]
[1734454919132,6.726e-05,106820.0,106810.0,0.53382885]
[1734454919605,6.726e-05,106820.0,106810.0,0.17302885]
[1734454920010,6.726e-05,106820.0,106810.0,0.49167251]
[1734454921917,0.04687226,106820.0,106810.0,0.046809]
[1734454922508,1.54687226,106820.0,106810.0,0.046809]
[1734454922810,0.04687226,106820.0,106810.0,0.046809]
[1734454923019,0.046809,106810.0,106800.0,0.16205986]
[1734454923210,0.04687326,106820.0,106810.0,0.046809]
[1734454923514,0.04687326,106820.0,106810.0,0.13087251]
[1734454923725,1.54687326,106820.0,106810.0,0.13087251]
[1734454924112,0.04687326,106820.0,106810.0,0.046809]
[1734454925019,0.04687326,106820.0,106810.0,0.407609]
[1734454925412,0.04687326,106820.0,106810.0,0.49167251]
[1734454926218,0.04687326,106820.0,106810.0,0.13087251]
[1734454926610,0.04687226,106820.0,106800.0,0.24612237]
[1734454926813,0.49173577,106820.0,106800.0,0.16205986]
[1734454927019,1.907609,106810.0,106800.0,0.01524786]
[1734454927217,0.57547531,106810.0,106800.0,7.305e-05]
[1734454927426,0.73401238,106810.0,106800.0,7.305e-05]
[1734454927614,0.65020958,106810.0,106800.0,7.305e-05]
[1734454927919,2.06614607,106810.0,106800.0,7.305e-05]
[1734454928117,2.14973517,106810.0,106800.0,0.13095056]
[1734454928325,2.14973517,106810.0,106800.0,0.04688705]
[1734454928910,0.64973517,106810.0,106800.0,0.04688705]
[1734454929311,0.56614607,106810.0,106800.0,0.04688705]
[1734454930124,0.64974762,106810.0,106800.0,0.04688705]
[1734454930421,0.20534607,106810.0,106800.0,0.04688705]
[1734454930614,0.08363289,106810.0,106800.0,0.13095056]
[1734454930822,0.13044189,106810.0,106800.0,0.04688205]
[1734454931221,0.5753054,106810.0,106800.0,7.305e-05]
[1734454931426,0.68704247,106810.0,106800.0,7.305e-05]
[1734454931917,0.60297896,106810.0,106800.0,0.04688705]
[1734454932427,0.13044189,106810.0,106800.0,0.04688705]
[1734454932913,0.08363289,106810.0,106800.0,0.13095056]
[1734454933312,0.13044189,106810.0,106800.0,0.04688705]
[1734454933520,0.65936891,106810.0,106790.0,0.01375684]
[1734454933720,0.046822,106780.0,106770.0,0.27942747]
[1734454933928,0.407622,106780.0,106770.0,0.27942747]
[1734454934725,0.407622,106780.0,106770.0,0.33558481]
[1734454935323,0.407622,106780.0,106770.0,0.27971705]
[1734454935720,0.49168551,106780.0,106770.0,0.61530186]
[1734454935931,0.85248551,106780.0,106770.0,0.27971705]
[1734454936224,0.768422,106780.0,106770.0,0.27971705]
[1734454936622,0.768422,106780.0,106770.0,0.04931705]
[1734454936929,0.046831,106770.0,106750.0,0.42925081]
[1734454937228,0.407631,106770.0,106750.0,0.52285081]
[1734454937420,0.046831,106760.0,106750.0,0.49011505]
[1734454938228,0.3608,106770.0,106750.0,0.80408205]
[1734454938528,0.407629,106770.0,106760.0,0.046831]
[1734454939433,0.3608,106770.0,106750.0,0.85091505]
[1734454939729,0.046831,106760.0,106750.0,0.49011505]
[1734454939936,0.046831,106760.0,106750.0,0.15453024]
[1734454944925,0.407631,106760.0,106750.0,0.15453024]
[1734454945528,0.407631,106760.0,106750.0,0.10703024]
[1734454945723,0.407631,106760.0,106750.0,0.046833]
[1734454945929,0.53388217,106760.0,106750.0,0.046833]
[1734454947738,0.046836,106750.0,106740.0,0.43937874]
[1734454948036,0.53388717,106750.0,106740.0,0.01435691]
[1734454948227,0.04684,106740.0,106720.0,0.38528998]
[1734454948432,0.17309517,106730.0,106720.0,0.43213598]
[1734454948634,0.046844,106730.0,106720.0,0.43213598]
[1734454948824,0.407644,106730.0,106720.0,0.47873598]
[1734454949030,0.36091785,106740.0,106730.0,0.046844]
[1734454949226,0.00011785,106740.0,106730.0,0.38242881]
[1734454949434,0.00011785,106740.0,106730.0,0.046844]
[1734454949630,0.04695785,106740.0,106730.0,0.046844]
[1734454949841,0.04695785,106740.0,106730.0,0.407644]
[1734454949842,0.00011785,106740.0,106730.0,0.407644]
[1734454950034,0.00011785,106740.0,106730.0,0.74322881]
[1734454950233,0.407637,106750.0,106740.0,0.04684]
[1734454950441,0.407637,106750.0,106740.0,0.38127814]
[1734454951238,0.53388817,106750.0,106740.0,0.38139751]
[1734454951540,0.53388817,106750.0,106740.0,0.33455751]
[1734454953739,0.53388817,106750.0,106740.0,0.00011937]
[1734454955341,0.407637,106750.0,106740.0,0.04695937]
[1734454955734,0.00148043,106760.0,106750.0,0.046836]
[1734454955932,0.00148043,106760.0,106750.0,0.455036]
[1734454956137,0.00148043,106760.0,106750.0,0.78976681]
[1734454956530,0.00148043,106760.0,106750.0,0.42896681]
[1734454956738,0.00148043,106760.0,106750.0,0.78976681]
[1734454957743,7.485e-05,106760.0,106750.0,0.78976681]
[1734454958047,0.407615,106800.0,106790.0,0.046818]
[1734454958438,0.046815,106800.0,106790.0,0.046818]
[1734454958628,0.046815,106800.0,106790.0,0.094218]
[1734454958835,0.13092872,106800.0,106790.0,0.094218]
[1734454959140,0.49172872,106800.0,106790.0,0.0474]
[1734454959341,0.407615,106800.0,106790.0,0.094218]
[1734454959645,0.046815,106800.0,106790.0,0.094218]
[1734454961730,0.06584684,106800.0,106790.0,0.094218]
[1734454965348,0.89487428,106800.0,106770.0,0.33493303]
[1734454965550,0.49173572,106780.0,106770.0,0.33493303]
[1734454965853,0.046827,106770.0,106760.0,0.38123789]
[1734454966143,0.49174072,106770.0,106760.0,0.33633789]
[1734454966350,0.49174072,106770.0,106760.0,0.00140486]
[1734454966746,0.49174072,106770.0,106760.0,0.28089225]
[1734454967043,0.3608,106770.0,106760.0,0.28089225]
[1734454967443,0.3608,106770.0,106760.0,0.00140486]
[1734454967758,1.95510001,106780.0,106760.0,0.42045161]
[1734454968047,0.53841372,106780.0,106760.0,0.33633789]
[1734454968249,0.3608,106770.0,106760.0,0.33633789]
[1734454969140,0.53841372,106780.0,106760.0,0.33633789]
[1734454969949,0.4543,106780.0,106760.0,0.33633789]
[1734454970543,0.0935,106780.0,106760.0,0.33633789]
[1734454971855,0.3608,106790.0,106770.0,0.08411372]
[1734454972047,0.3608,106790.0,106780.0,0.08411372]
[1734454972245,0.3608,106790.0,106770.0,0.18411372]
[1734454973458,0.3608,106790.0,106770.0,0.1]
[1734454974254,0.3608,106790.0,106770.0,0.51904675]
[1734454974462,0.3608,106790.0,106780.0,0.08411372]
[1734454974754,0.37983184,106800.0,106770.0,0.51904675]
[1734454975856,0.37983184,106800.0,106770.0,0.87984675]
[1734454976151,0.44491372,106790.0,106770.0,0.74493303]
[1734454976358,0.44491372,106780.0,106770.0,0.39842013]
[1734454976859,0.3608,106780.0,106770.0,0.39842013]
[1734454977156,1.94491372,106780.0,106770.0,0.34922013]
[1734454977351,1.8608,106780.0,106770.0,0.34922013]
[1734454977549,0.3608,106780.0,106770.0,0.34922013]
[1734454979646,0.44491372,106790.0,106770.0,0.34922013]
[1734454982850,0.3608,106790.0,106770.0,0.34922013]
[1734454983053,0.44491372,106790.0,106770.0,0.34922013]
[1734454984060,0.44491372,106790.0,106780.0,0.33493303]
[1734454984257,0.44491372,106790.0,106770.0,0.33493303]
[1734454984573,0.44491372,106790.0,106780.0,0.33493303]
[1734454984756,0.3608,106790.0,106780.0,0.33493303]
[1734454985063,0.3608,106790.0,106770.0,0.33493303]
[1734454985064,0.44491372,106790.0,106770.0,0.33493303]
[1734454986466,0.08411372,106780.0,106770.0,0.33493303]
[1734454986663,0.44491372,106780.0,106760.0,0.44890306]
[1734454986859,0.44491372,106770.0,106760.0,0.40140306]
[1734454988054,0.3608,106770.0,106760.0,0.40140306]
[1734454990466,0.3608,106770.0,106760.0,0.01523483]
[1734454990670,0.3608,106770.0,106760.0,0.00140486]
[1734454990870,0.44491372,106770.0,106760.0,0.00140486]
[1734454991166,0.52902744,106770.0,106760.0,0.00140486]
[1734454991370,0.49441372,106770.0,106760.0,0.33740891]
[1734454991553,0.3608,106770.0,106760.0,0.33740891]
[1734454992764,0.3608,106770.0,106760.0,0.72357714]
[1734454993154,0.3608,106770.0,106760.0,0.33740891]
[1734454993560,0.44491372,106770.0,106760.0,0.33740891]
[1734454993861,0.44491372,106770.0,106760.0,0.33600405]
[1734454997082,0.82902744,106770.0,106760.0,0.33600405]
[1734454997368,0.82902744,106770.0,106760.0,0.02572301]
[1734454997568,1.5,106760.0,106750.0,0.38616823]
[1734454997869,1.99231372,106760.0,106750.0,0.38616823]
[1734454998063,2.03914472,106760.0,106740.0,0.00011937]
[1734454998266,0.49174972,106750.0,106740.0,0.00011937]
[1734454999566,0.49186212,106750.0,106740.0,0.00011937]
[1734455000170,0.83770212,106750.0,106720.0,0.01752286]
[1734455000369,0.046849,106720.0,106710.0,0.44077765]
[1734455000571,0.49176272,106720.0,106710.0,0.24584972]
[1734455000872,0.59086272,106720.0,106710.0,0.24584972]
[1734455001262,0.89086272,106720.0,106710.0,8.464e-05]
[1734455002165,0.97497644,106720.0,106710.0,8.464e-05]
[1734455003562,0.89086272,106720.0,106710.0,8.464e-05]
[1734455004380,0.97497644,106720.0,106710.0,8.464e-05]
[1734455004963,0.59086272,106720.0,106710.0,8.464e-05]
[1734455005375,0.89086272,106720.0,106710.0,8.464e-05]
[1734455006476,0.9084323,106720.0,106710.0,8.464e-05]
[1734455008470,0.99254602,106720.0,106710.0,8.464e-05]
[1734455009071,0.94569702,106720.0,106680.0,0.01724006]
[1734455009275,0.94569702,106720.0,106670.0,0.1477]
[1734455009276,0.046866,106680.0,106670.0,0.1477]
[1734455009469,0.49177972,106680.0,106670.0,0.1477]
[1734455011078,0.57589344,106680.0,106670.0,0.1477]
[1734455011380,0.57598687,106680.0,106670.0,0.0955]
[1734455011677,0.57015633,106680.0,106670.0,0.0955]
[1734455012664,0.57015633,106680.0,106660.0,0.00140626]
[1734455012665,0.046871,106670.0,106660.0,0.00140626]
[1734455012869,0.49178472,106670.0,106660.0,0.00140626]
[1734455013470,0.407671,106670.0,106660.0,0.00140626]
[1734455013875,0.407671,106670.0,106660.0,0.04828126]
[1734455015271,0.40193089,106680.0,106670.0,0.046871]
[1734455015474,0.40193089,106680.0,106670.0,0.095871]
[1734455015683,0.40193089,106680.0,106670.0,0.049]
[1734455015684,0.48604461,106680.0,106670.0,0.049]
[1734455017371,0.40193089,106680.0,106670.0,0.095871]
[1734455017885,0.48604461,106680.0,106670.0,0.095871]
[1734455018478,0.40193089,106680.0,106670.0,0.095871]
[1734455021781,1.54696143,106680.0,106670.0,0.095871]
[1734455021985,9.343e-05,106680.0,106670.0,0.54078472]
[1734455022279,0.40766,106700.0,106690.0,0.046862]
[1734455023279,0.4077611,106700.0,106690.0,0.046862]
[1734455024779,0.42607914,106700.0,106690.0,0.046862]
[1734455025887,0.51019286,106700.0,106690.0,0.046862]
[1734455026081,0.046862,106690.0,106680.0,0.149565]
[1734455026286,0.49177572,106690.0,106680.0,0.1027]
[1734455028883,0.49177572,106690.0,106670.0,0.06708601]
[1734455028884,0.046866,106680.0,106670.0,9.343e-05]
[1734455029088,0.49177972,106680.0,106670.0,9.343e-05]